[Event "Romanian Team Blitz Open 2022"]
[Site "Sebes"]
[Date "2022.12.04"]
[Round "1.16"]
[White "Calugareanu, Ioana-Denisa"]
[Black "Ciorgovean, Iustin"]
[Result "0-1"]
[ECO "E61"]
[WhiteElo "1396"]
[BlackElo "2319"]
[Annotator "TA"]
[PlyCount "117"]
[EventDate "2022.12.04"]
[EventType "blitz"]
[EventCountry "ROU"]
[SourceTitle "playchess.com"]
[Source "ChessBase"]
[SourceQuality "1"]
[TimeControl "180+2"]

{[%evp 14,117,-12,-20,24,8,10,2,0,-4,22,0,-13,-10,-5,-23,0,0,14,-28,23,-21,0,0,0,-33,0,-9,0,-118,-108,-118,-118,-119,-119,-225,-185,-197,-134,-135,-123,-258,-266,-458,-458,-431,-398,-516,-516,-498,-497,-450,-423,-827,-810,-872,-859,-29976,-29974,-29978,-29979,-29979,-29980,-29980,-29981,-29981,-29982,-29982,-29983,-29983,-29984,-29984,-29985,-29987,-29988,-29988,-29987,-29987,-29988,-29988,-29989,-29989,-29990,-29990,-29991,-29991,-29992,-29992,-29989,-29989,-29989,-29989,-29988,-29988,-29987,-29987,-29987,-29987,-29988,-29988,-29988,-29989,-29990,-29990,-29991,-29992]} 1. d4 {[%emt 0:00:01]} Nf6 {[%emt 0:00:01]} 2. c4 {[%emt 0:00:01]} c5 {[%emt 0:00:01]} 3. e3 {[%emt 0:00:03]} g6 {[%emt 0:00:03]} 4. Nf3 {[%emt 0:00:02]} Bg7 {[%emt 0:00:01]} 5. Nc3 {[%emt 0:00:02]} O-O {[%emt 0:00:05]} 6. Be2 {[%emt 0:00:01]} cxd4 {[%emt 0:00:02]} 7. exd4 {[%emt 0:00:03]} d5 {[%emt 0:00:01]} 8. b3 {[%emt 0:00:11]} Qa5 {[%emt 0:00:20] E61: King's Indian: Early deviations for White, including Smyslov System.} 9. Bd2 {[%emt 0:00:05] White wants to play Nxd5.} Qd8 {[%emt 0:00:14]} 10. O-O {[%emt 0:00:03]} Nc6 {[%emt 0:00:02] [#] The position is equal.} 11. Be3 $146 {[%emt 0:00:35]} ({Predecessor:} 11. Bc1 Bg4 12. Bb2 e6 13. c5 Ne4 14. h3 Bxf3 15. Bxf3 Bxd4 16. Bxe4 dxe4 17. Qe2 f5 18. Rad1 Qf6 19. Na4 e5 20. b4 {0-1 (40) Bue,G (1896)-Berstad,J (1876) Gausdal 2006}) 11... Bf5 {[%emt 0:00:28]} 12. Bd3 {[%emt 0:00:08]} Bxd3 {[%emt 0:00:16]} 13. Qxd3 {[%emt 0:00:01]} Rc8 {[%emt 0:00:01]} 14. Rac1 {[%emt 0:00:08]} e6 {[%emt 0:00:25]} 15. Bf4 {[%emt 0:00:06]} a6 {[%emt 0:00:46]} 16. a3 {[%emt 0:00:20]} Re8 {[%emt 0:00:02]} (16... Qa5 $142) 17. Rfe1 {[%emt 0:00:22]} Na5 {[%emt 0:00:12]} (17... Qa5 $5 {[%cal Ra5a3]}) 18. Ne2 {[%emt 0:00:35]} Ne4 {[%emt 0:00:02]} 19. Ng3 {[%emt 0:00:02]} Nxg3 {[%emt 0:00:05]} (19... g5 $5 {[%cal Rg5f4]} 20. Be3 Nxg3 21. hxg3 h6 $11) 20. Bxg3 {[%emt 0:00:01]} Qb6 {[%emt 0:00:05]} 21. Nd2 {[%emt 0:00:11]} (21. Rb1 $11 {keeps the balance.}) 21... Qxd4 {[%emt 0:00:04]} ({Much worse is} 21... Bxd4 $6 22. c5 Bxc5 23. b4 $11) 22. Qxd4 Bxd4 {[%emt 0:00:01]} 23. cxd5 {[%emt 0:00:19]} exd5 {[%emt 0:00:03]} (23... Rxc1 {simplifies} 24. Rxc1 exd5 25. Kf1 Nc6) 24. b4 {[%emt 0:00:10]} (24. Rxe8+ $17 Rxe8 25. Kf1) 24... Rxe1+ {[%emt 0:00:13]} 25. Rxe1 {[%emt 0:00:01]} Bc3 {[%emt 0:00:01]} (25... Nc4 $19 26. Nb3 Bc3) 26. Rc1 $17 {[%emt 0:00:14]} Rc6 $1 {[%emt 0:00:07]} 27. bxa5 {[%emt 0:00:02] This costs White the game.} (27. Nf3 $17 Bb2 28. Rd1) 27... Bxd2 $19 {[%emt 0:00:02][%cal Rc6c1][%mdl 64] [#] Discovered Attack} 28. Rxc6 {[%emt 0:00:01]} (28. Ra1) 28... bxc6 $17 {[%emt 0:00:00][%mdl 4096] Endgame KB-KB} 29. Bc7 {[%emt 0:00:03]} Kf8 {[%emt 0:00:01]} 30. Bb6 {[%emt 0:00:01]} Ke7 {[%emt 0:00:02] White must now prevent ...Kd6.} 31. Kf1 {[%emt 0:00:01]} Kd6 {[%emt 0:00:01]} 32. Ke2 {[%emt 0:00:01] Inhibits c5.} Bc1 {[%emt 0:00:02]} 33. Kd1 {[%emt 0:00:03]} (33. a4 $142 c5 34. Kd3) 33... Bxa3 $19 {[%emt 0:00:01]} 34. Kc2 {[%emt 0:00:01]} Bc5 {[%emt 0:00:02] [#] ( -> ...Bxb6)} 35. Kd3 {[%emt 0:00:02]} Bxb6 {[%emt 0:00:01] Black mates.} 36. axb6 {[%emt 0:00:00] KP-KP} c5 {[%emt 0:00:00]} 37. b7 {[%emt 0:00:03]} Kc7 {[%emt 0:00:01]} 38. b8=Q+ Kxb8 39. Kc3 {[%emt 0:00:05]} Kb7 {[%emt 0:00:03]} 40. f4 {[%emt 0:00:01]} Kb6 {[%emt 0:00:01]} 41. g4 {[%emt 0:00:01]} Kb5 {[%emt 0:00:01]} 42. h4 {[%emt 0:00:01]} f5 {[%emt 0:00:02]} 43. gxf5 {[%emt 0:00:08]} gxf5 {[%emt 0:00:00]} 44. h5 {[%emt 0:00:02]} h6 {[%emt 0:00:01]} 45. Kd3 {[%emt 0:00:01]} a5 {[%emt 0:00:01][%cal Ba6a5,Ba5a4,Ba4a3][%mdl 32]} 46. Kc3 {[%emt 0:00:00]} a4 {[%emt 0:00:00]} 47. Kd3 {[%emt 0:00:01]} Kb4 {[%emt 0:00:01]} 48. Kc2 {[%emt 0:00:01]} a3 {[%emt 0:00:01]} 49. Kc1 {[%emt 0:00:01]} Kc3 {[%emt 0:00:01]} 50. Kb1 {[%emt 0:00:02]} Kd3 {[%emt 0:00:00]} 51. Ka2 {[%emt 0:00:00]} Ke4 {[%emt 0:00:01]} 52. Kxa3 {[%emt 0:00:01]} Kxf4 {[%emt 0:00:01]} 53. Kb3 {[%emt 0:00:01]} Kg5 {[%emt 0:00:01]} 54. Kc2 {[%emt 0:00:01]} Kxh5 {[%emt 0:00:01]} 55. Kd3 {[%emt 0:00:01]} Kg4 {[%emt 0:00:01]} 56. Ke3 {[%emt 0:00:00]} Kg3 {[%emt 0:00:01]} 57. Ke2 {[%emt 0:00:01]} h5 {[%emt 0:00:01][%cal Bh6h5,Bh5h4][%mdl 32]} 58. Kf1 {[%emt 0:00:01]} h4 {[%emt 0:00:01]} 59. Kg1 {[%emt 0:00:00] Weighted Error Value: White=0.53/Black=0.12 (very precise)} 0-1

[Event "Romanian Team Blitz Open 2022"]
[Site "Sebes"]
[Date "2022.12.04"]
[Round "1.17"]
[White "Macarie, Maia-Elisabeta"]
[Black "Szabo, Gergely-Andras-Gyula"]
[Result "0-1"]
[ECO "D02"]
[WhiteElo "1100"]
[BlackElo "2514"]
[Annotator "TA"]
[PlyCount "47"]
[EventDate "2022.12.04"]
[EventType "blitz"]
[EventCountry "ROU"]
[SourceTitle "playchess.com"]
[Source "ChessBase"]
[SourceQuality "1"]
[TimeControl "180+2"]

{[%evp 15,47,-1,0,-16,-14,-63,14,6,38,-208,-189,-230,-105,-175,-137,-137,-130,-122,-100,-91,-82,-347,-285,-447,-438,-591,-547,-908,-911,-3064,-1484,-1316,-922,-5402]} 1. d4 {[%emt 0:00:02]} Nf6 {[%emt 0:00:01]} 2. Bf4 {[%emt 0:00:01]} e6 {[%emt 0:00:04]} 3. Nf3 {[%emt 0:00:01]} c5 {[%emt 0:00:04]} 4. c3 {[%emt 0:00:01]} d5 {[%emt 0:00:06]} 5. e3 {[%emt 0:00:01]} Bd6 {[%emt 0:00:04]} 6. Bg3 {[%emt 0:00:01]} O-O {[%emt 0:00:08]} 7. Nbd2 {[%emt 0:00:02]} Qc7 {[%emt 0:00:04]} 8. Bd3 {[%emt 0:00:04]} Nbd7 {[%emt 0:00:04]} 9. Qe2 {[%emt 0:00:05] D02: 1 d4 d5 2 Nf3 sidelines, including 2...Nf6 3 g3 and 2...Nf6 3 Bf4.} e5 {[%emt 0:00:10]} 10. e4 {[%emt 0:00:12]} (10. dxe5 $11 Nxe5 11. Nxe5 Bxe5 12. Bxe5 Qxe5 13. Nf3) 10... dxe4 {[%emt 0:00:19]} ({Better is} 10... cxd4 $15 11. cxd4 dxe4 12. Bxe4 exd4 13. Nxd4 Bxg3 14. hxg3 Qb6) 11. Nxe4 $11 {[%emt 0:00:04] The position is equal.} Nxe4 {[%emt 0:00:03] [#]} 12. Qxe4 $146 {[%emt 0:00:08]} (12. dxe5 $1 $14 {is the one way to stay ahead.} Nxg3 13. hxg3) ({Predecessor:} 12. dxe5 Nxg3 13. hxg3 Re8 14. Bxh7+ Kf8 15. Bc2 Bxe5 16. Kf1 g6 17. Re1 Qd8 18. Nxe5 Nxe5 {1-0 (24) Liu,C (2107)-Sigeman,J (2146) Helsingor 2021}) 12... Nf6 $19 {[%emt 0:00:01]} 13. Qh4 {[%emt 0:00:12][%cal Rd4e5] [#]} exd4 {[%emt 0:00:03]} (13... e4 $1 $19 {[%cal Re4f3] is more deadly.} 14. Bxe4 (14. Bxd6 $2 Qxd6 15. Bxe4 Re8 $19) 14... Re8) 14. cxd4 {[%emt 0:00:05]} (14. Bxd6 $17 {might work better.} Qxd6 15. O-O) 14... Re8+ {[%emt 0:00:04]} 15. Kf1 {[%emt 0:00:10]} h6 {[%emt 0:00:27]} 16. Rc1 {[%emt 0:00:24]} Bxg3 {[%emt 0:00:04]} 17. hxg3 {[%emt 0:00:04]} Qa5 $40 {[%emt 0:00:08][%mdl 128] [#] White must now prevent ...Bg4. Black has strong attack.} (17... Qb6 {keeps more tension.} 18. b3 Qa5 19. Qf4 cxd4 20. Rxh6 gxh6 21. Qxf6 Qh5) 18. Bc4 $2 {[%emt 0:00:11][%mdl 8192]} (18. dxc5 $2 {loses.} Bg4 19. Kg1 Qxa2 $19) (18. Qf4 $17) 18... Be6 {[%emt 0:00:09]} ({Avoid the trap} 18... Re4 $2 19. Qh2) 19. dxc5 {[%emt 0:00:17]} (19. Bxe6 {was called for.} Rxe6 20. Qf4) 19... Qxc5 {[%emt 0:00:07] Black is clearly winning.} 20. b3 {[%emt 0:00:07]} b5 {[%emt 0:00:07]} 21. Nd2 {[%emt 0:01:06]} bxc4 {[%emt 0:00:02]} 22. Nxc4 {[%emt 0:00:05]} Rad8 {[%emt 0:00:05]} (22... Ng4 $142 23. Qxg4 Bxg4) 23. Qf4 {[%emt 0:00:17]} Bxc4+ {[%emt 0:00:05]} 24. bxc4 {[%emt 0:00:10] Weighted Error Value: White=1.40/Black=0.89} 0-1

[Event "Romanian Team Blitz Open 2022"]
[Site "Sebes"]
[Date "2022.12.04"]
[Round "1.18"]
[White "Nevednichy, Vladislav"]
[Black "Burja-Udrea, Razvan-Andrei"]
[Result "1-0"]
[ECO "A36"]
[WhiteElo "2499"]
[BlackElo "1365"]
[Annotator "TA"]
[PlyCount "123"]
[EventDate "2022.12.04"]
[EventType "blitz"]
[EventCountry "ROU"]
[SourceTitle "playchess.com"]
[Source "ChessBase"]
[SourceQuality "1"]
[TimeControl "180+2"]

{[%evp 9,123,6,30,15,36,28,101,91,86,83,83,88,96,83,99,86,107,75,108,101,168,168,150,150,246,243,247,205,245,244,342,250,508,505,479,556,547,554,550,535,544,526,552,460,492,494,577,565,563,549,582,577,560,528,536,538,661,657,597,601,729,706,1275,1060,1125,1148,1688,1586,3220,2877,29978,29979,29979,29979,29984,29984,29988,29989,29989,29990,29991,29991,29993,29994,29995,29993,29996,29993,29993,29991,29991,29988,29988,29989,29989,29990,29990,29990,29991,29991,29996,29996,29997,29994,29997,29997,29997,29994,29997,29993,29993,29994,29995,29994,29994,29995]} 1. c4 {[%emt 0:00:02]} c5 {[%emt 0:00:05]} 2. Nc3 {[%emt 0:00:02]} Nc6 {[%emt 0:00:00]} 3. g3 {[%emt 0:00:00]} e6 {[%emt 0:00:02]} 4. Bg2 {[%emt 0:00:02]} Nge7 {[%emt 0:00:02]} 5. e4 {[%emt 0:00:02]} b6 {[%emt 0:00:10]} 6. Nge2 {[%emt 0:00:02] A36: Symmetrical English vs ...g6: 4 Bg2 Bg7.} Bb7 {[%emt 0:00:01]} 7. O-O {[%emt 0:00:02]} d6 {[%emt 0:00:09]} (7... Nd4 $11) 8. d4 $16 {[%emt 0:00:02] White is better.} cxd4 {[%emt 0:00:06]} 9. Nxd4 {[%emt 0:00:00]} Nxd4 {[%emt 0:00:03]} 10. Qxd4 {[%emt 0:00:02]} Nc6 {[%emt 0:00:01]} 11. Qd2 {[%emt 0:00:02] White is more active.} Be7 {[%emt 0:00:02]} 12. b3 {[%emt 0:00:02]} O-O {[%emt 0:00:09] [#]} 13. Rd1 $146 {[%emt 0:00:02]} ({Predecessor:} 13. Ba3 e5 14. Rad1 Nd4 15. Ne2 Nxe2+ 16. Qxe2 Qd7 17. f4 Qc7 18. f5 f6 19. Bb4 {0-1 (46) Brezovar,M (2254)-Radlovacki,J (2381) Budapest 2015}) 13... Rc8 {[%emt 0:00:05]} 14. Ba3 {[%emt 0:00:02]} Qc7 {[%emt 0:00:44]} (14... Qd7 $16) 15. Bxd6 $18 {[%emt 0:00:09]} Bxd6 {[%emt 0:00:01]} 16. Qxd6 {[%emt 0:00:01]} Rfd8 {[%emt 0:00:27] Prevents e5.} (16... Qxd6 $16 {was necessary.} 17. Rxd6 e5) 17. Qxc7 {[%emt 0:00:03]} Rxc7 {[%emt 0:00:02]} 18. Rxd8+ {[%emt 0:00:01]} Nxd8 {[%emt 0:00:02]} 19. Rd1 {[%emt 0:00:01][%cal Rd1d8] [#] Prevents Rd7.} Nc6 {[%emt 0:00:04]} (19... Rc8 {was called for.} 20. Rd7 Kf8) 20. e5 {[%emt 0:00:03]} Kf8 $2 {[%emt 0:00:04]} (20... h6 21. f4 Re7) 21. Nb5 {[%emt 0:00:03]} Re7 {[%emt 0:00:27]} 22. Bxc6 {[%emt 0:00:08]} Bxc6 {[%emt 0:00:01][%mdl 4096] Endgame KRB-KRN} 23. Rd8+ {[%emt 0:00:01]} Re8 {[%emt 0:00:06]} 24. Rxe8+ {[%emt 0:00:02]} Kxe8 {[%emt 0:00:02]} 25. Nxa7 {[%emt 0:00:02] KB-KN} Be4 {[%emt 0:00:01]} 26. Nb5 {[%emt 0:00:02] [#] Strongly threatening Nd6+.} Bb1 {[%emt 0:00:03]} 27. Nc3 {[%emt 0:00:02]} Bc2 {[%emt 0:00:12]} 28. Kf1 {[%emt 0:00:04]} Kd7 {[%emt 0:00:02]} 29. Ke2 {[%emt 0:00:01]} Kc6 {[%emt 0:00:01]} 30. Ke3 {[%emt 0:00:03]} Kc5 {[%emt 0:00:02]} 31. Na4+ {[%emt 0:00:01]} Kc6 {[%emt 0:00:08]} 32. Kd4 {[%emt 0:00:02]} Bb1 {[%emt 0:00:07]} 33. Nc3 {[%emt 0:00:03]} Bc2 {[%emt 0:00:05]} 34. f4 {[%emt 0:00:02]} g6 {[%emt 0:00:01]} 35. b4 {[%emt 0:00:01]} h5 {[%emt 0:00:07]} 36. Nb5 {[%emt 0:00:04] Nd6 is the strong threat.} Bb1 {[%emt 0:00:11]} 37. a3 {[%emt 0:00:01]} Kd7 {[%emt 0:00:03]} 38. c5 {[%emt 0:00:03]} bxc5+ {[%emt 0:00:05]} 39. Kxc5 {[%emt 0:00:02] White wants to mate with a4.} Bd3 {[%emt 0:00:02]} 40. a4 {[%emt 0:00:01] White mates.} Bf1 {[%emt 0:00:03]} 41. a5 {[%emt 0:00:01]} Kc8 {[%emt 0:00:00]} 42. a6 {[%emt 0:00:02]} Kb8 {[%emt 0:00:01]} 43. Kb6 {[%emt 0:00:02]} Bxb5 {[%emt 0:00:02]} 44. Kxb5 {[%emt 0:00:01] KP-KP} Ka7 {[%emt 0:00:01]} 45. Ka5 {[%emt 0:00:01]} Ka8 {[%emt 0:00:00]} 46. Kb6 {[%emt 0:00:01]} Kb8 {[%emt 0:00:01]} 47. b5 {[%emt 0:00:00]} Ka8 {[%emt 0:00:00]} 48. Kc6 {[%emt 0:00:01]} Ka7 {[%emt 0:00:01]} 49. Kd6 {[%emt 0:00:01]} Kb6 {[%emt 0:00:00]} 50. Ke7 {[%emt 0:00:01]} Kxb5 {[%emt 0:00:02]} 51. a7 {[%emt 0:00:01]} Kc4 {[%emt 0:00:01]} 52. a8=Q {[%emt 0:00:02]} Kd3 {[%emt 0:00:01]} 53. Qa2 {[%emt 0:00:01]} Ke4 {[%emt 0:00:01]} 54. Kxf7 {[%emt 0:03:05]} Kf5 55. Qc2+ {[%emt 0:00:00]} Kg4 {[%emt 0:00:01]} 56. Kxg6 {[%emt 0:00:00]} Kh3 {[%emt 0:00:01]} 57. Kf6 {[%emt 0:00:00]} Kg4 {[%emt 0:00:01]} 58. Kxe6 {[%emt 0:00:00]} Kh3 {[%emt 0:00:02]} 59. Qf5+ {[%emt 0:00:00]} Kxh2 {[%emt 0:00:01]} 60. Qxh5+ {[%emt 0:00:00]} Kxg3 {[%emt 0:00:01]} 61. f5 {[%emt 0:00:00][%cal Bf4f5,Bf5f6][%mdl 32]} Kf2 {[%emt 0:00:38]} 62. f6 {[%emt 0:00:16] White took control after the opening.   Weighted Error Value: White=0.12 (very precise) /Black=0.43} 1-0

[Event "Romanian Team Blitz Open 2022"]
[Site "Sebes"]
[Date "2022.12.04"]
[Round "1.19"]
[White "Simina, Alexandru-Ioan"]
[Black "Stoleriu, George"]
[Result "0-1"]
[ECO "E12"]
[WhiteElo "1244"]
[BlackElo "2389"]
[Annotator "TA"]
[PlyCount "66"]
[EventDate "2022.12.04"]
[EventType "blitz"]
[EventCountry "ROU"]
[SourceTitle "playchess.com"]
[Source "ChessBase"]
[SourceQuality "1"]
[TimeControl "180+2"]

{[%evp 9,65,0,16,11,20,-5,-3,-4,17,9,4,7,33,26,35,0,0,0,8,0,21,17,15,-29,-16,-23,-14,-27,-28,-131,-127,-130,-131,-142,-76,-187,-182,-174,-178,-442,-437,-1231,-1210,-2104,-1871,-1451,-1451,-1444,-1434,-29988,-29989,-29988,-29989,-29991,-29992,-29990,-29991,-29999]} 1. d4 {[%emt 0:00:02]} Nf6 {[%emt 0:00:01]} 2. c4 {[%emt 0:00:02]} e6 {[%emt 0:00:02]} 3. a3 {[%emt 0:00:02]} b6 {[%emt 0:00:01]} 4. Nf3 {[%emt 0:00:05]} Bb7 {[%emt 0:00:01]} 5. Bf4 {[%emt 0:00:05]} d6 {[%emt 0:00:02]} 6. e3 {[%emt 0:00:04] E12: Queen's Indian: Unusual White 4th moves, 4 a3, 4 Nc3 Bb7 5 a3 and 4 Nc3 Bb7 .} Nbd7 {[%emt 0:00:01] [#]} 7. b4 $146 {[%emt 0:00:23]} ({Predecessor:} 7. Nc3 h6 8. h3 g5 9. Bh2 Bg7 10. d5 e5 11. Nd2 Qe7 12. Be2 Nf8 13. Qa4+ {0-1 (39) De Coninck,E (1623)-Petrov,M (1990) Mureck 2013}) 7... a5 {[%emt 0:00:05] White must now prevent ...axb4.} 8. Nc3 {[%emt 0:00:33] The position is equal.} g6 {[%emt 0:00:01]} 9. Be2 {[%emt 0:00:05]} Bg7 {[%emt 0:00:01]} 10. O-O {[%emt 0:00:03]} O-O {[%emt 0:00:01]} 11. Qc2 {[%emt 0:00:03]} h6 {[%emt 0:00:05]} 12. Rfd1 {[%emt 0:00:20]} Nh5 {[%emt 0:00:03]} 13. Bg3 {[%emt 0:00:03]} Nxg3 {[%emt 0:00:02]} 14. hxg3 {[%emt 0:00:02]} f5 {[%emt 0:00:04]} 15. Nh4 {[%emt 0:00:09]} g5 {[%emt 0:00:05]} 16. Ng6 {[%emt 0:00:04]} (16. Nf3 {simplifies} Qe7 17. Rab1 axb4 18. axb4 Qf7 19. Nd2) 16... Rf6 {[%emt 0:00:02]} 17. Bh5 {[%emt 0:00:09]} Kh7 $36 {[%emt 0:00:02][%cal Bg8h7,Bh7g6,Bg6f5][%mdl 2080] Black has some pressure.} 18. e4 {[%emt 0:00:09]} (18. g4 $5) 18... Rxg6 {[%emt 0:00:33]} 19. Bxg6+ {[%emt 0:00:06]} (19. exf5 $11 exf5 20. Qxf5) 19... Kxg6 $17 {[%emt 0:00:01]} 20. exf5+ {[%emt 0:00:02][%mdl 64] Remove Defender} exf5 {[%emt 0:00:01] aiming for ...axb4.} 21. g4 {[%emt 0:00:03][%csl Gg4][%cal Rc2f5] [#]} Qf8 {[%emt 0:00:12]} (21... Kf7 $142 $1 22. Qxf5+ Nf6) 22. gxf5+ {[%emt 0:00:15]} (22. Nb5 $17 {keeps fighting.}) 22... Qxf5 $19 {[%emt 0:00:01]} 23. Qxf5+ {[%emt 0:00:02]} Kxf5 {[%emt 0:00:01]} 24. Rd3 $2 {[%emt 0:00:08]} (24. Nb5) 24... axb4 {[%emt 0:00:03]} 25. Re3 {[%emt 0:00:12]} (25. Nb5 $142 Be4 26. Rd2) 25... Bxd4 {[%emt 0:00:14]} 26. Re7 {[%emt 0:00:04]} Bxc3 {[%emt 0:00:04]} 27. Rd1 {[%emt 0:00:27] [#]} bxa3 $1 {[%emt 0:00:11][%cal Oa3a2] ...a2! is the strong threat.} 28. Rxd7 {[%emt 0:00:07]} a2 {[%emt 0:00:02]} 29. Rf7+ {[%emt 0:00:02]} Kg6 {[%emt 0:00:01] Black mates.} 30. Re7 {[%emt 0:00:03]} a1=Q {[%emt 0:00:03]} 31. Rxa1 {[%emt 0:00:03]} Rxa1+ {[%emt 0:00:01]} 32. Kh2 {[%emt 0:00:01]} Be5+ {[%emt 0:00:01]} 33. g3 {[%emt 0:00:01]} Rh1# {[%emt 0:00:02] Weighted Error Value: White=0.78/Black=0.10 (very precise)} 0-1

[Event "Romanian Team Blitz Open 2022"]
[Site "Sebes"]
[Date "2022.12.04"]
[Round "1.20"]
[White "Zubcu, Vlad-George"]
[Black "Simina, Andrei-Petru"]
[Result "1-0"]
[ECO "D01"]
[WhiteElo "2135"]
[BlackElo "1033"]
[Annotator "TA"]
[PlyCount "115"]
[EventDate "2022.12.04"]
[EventType "blitz"]
[EventCountry "ROU"]
[SourceTitle "playchess.com"]
[Source "ChessBase"]
[SourceQuality "1"]
[TimeControl "180+2"]

{[%evp 9,114,24,27,17,40,27,62,-3,0,-28,6,13,16,22,18,-4,27,40,99,91,99,0,89,84,168,143,202,108,115,100,270,277,624,622,628,619,619,612,1386,1362,1763,1774,5197,2849,5643,5543,29979,29980,29986,29977,29977,29978,29978,29979,29977,29978,29983,29984,29984,29985,29988,29986,29986,29987,29987,29988,29988,29989,29989,29990,29990,29991,29991,29992,29993,29990,29989,29987,29987,29988,29988,29989,29989,29989,29988,29989,29989,29990,29991,29992,29993,29993,29994,29995,29995,29996,29996,29996,29997,29997,29997,29997,29997,29998,29998,29999,29999]} 1. d4 {[%emt 0:00:01]} d5 {[%emt 0:00:01]} 2. Nc3 {[%emt 0:00:01]} Nf6 {[%emt 0:00:02]} 3. Bg5 {[%emt 0:00:01]} h6 {[%emt 0:00:03]} 4. Bxf6 {[%emt 0:00:00]} gxf6 {[%emt 0:00:01]} 5. e4 {[%emt 0:00:00]} dxe4 {[%emt 0:00:02]} 6. Nxe4 {[%emt 0:00:01] D01: Veresov Opening.} Nc6 {[%emt 0:00:03]} 7. Nf3 {[%emt 0:00:08]} Bf5 {[%emt 0:00:02] [#]} 8. Nc3 $146 {[%emt 0:00:09]} (8. Ng3 $14 Qd5 9. Nxf5 Qxf5 10. Bd3 Qe6+ 11. Be2) ({Predecessor:} 8. Nc5 Rb8 9. Bb5 e6 10. Nxb7 Qd7 11. Bxc6 Qxc6 12. Nc5 Bxc5 13. dxc5 Rg8 14. O-O Bh3 15. Qd2 Bxg2 16. Rfe1 Bh3+ {0-1 (16) Olivares Cortes,L (1249)-Cabrera Canales,L (1227) Valparaiso 2015}) 8... e6 {[%emt 0:00:06]} 9. g3 {[%emt 0:00:13]} Bb4 {[%emt 0:00:07]} 10. Bg2 $1 {[%emt 0:00:02]} Qd7 {[%emt 0:00:20]} 11. O-O {[%emt 0:00:05]} O-O-O {[%emt 0:00:02][%cal Rc6d4]} 12. Ne2 {[%emt 0:00:17]} Rhe8 {[%emt 0:00:27]} 13. c3 {[%emt 0:00:03]} (13. Nh4 {with more complications.} Bg4 14. c3 Bd6 15. h3) 13... Bf8 {[%emt 0:00:14]} (13... Bd6 $14) 14. Nh4 $16 {[%emt 0:00:13] aiming for Nxf5.} Bg4 {[%emt 0:00:07]} 15. Qc2 {[%emt 0:00:09]} (15. f3 $16 Bh5 16. Nf4) 15... Bxe2 (15... e5 $11) 16. Qxe2 {[%emt 0:00:02]} Bg7 {[%emt 0:00:09]} (16... e5 $16 {was worth a try.}) 17. a4 {[%emt 0:00:16]} e5 {[%emt 0:00:07]} (17... f5 $16) 18. d5 {[%emt 0:00:01]} (18. a5 $18 {And now a6 would win.} exd4 19. Qf3) 18... Ne7 {[%emt 0:00:03]} 19. c4 {[%emt 0:00:00]} c6 $2 {[%emt 0:00:04] This costs Black the game.} (19... f5 $16) 20. Rfd1 $18 {[%emt 0:00:03] [#] Threatens to win with dxc6.} Qc7 {[%emt 0:00:14]} (20... cxd5 21. cxd5 Kb8) 21. Qg4+ {[%emt 0:00:08]} Kb8 {[%emt 0:00:14]} 22. Qxg7 {[%emt 0:00:02]} cxd5 {[%emt 0:00:08]} 23. cxd5 {[%emt 0:00:02]} Rxd5 {[%emt 0:00:03]} 24. Bxd5 {[%emt 0:00:02]} Rd8 {[%emt 0:00:14]} 25. Bf3 {[%emt 0:00:09]} Rxd1+ {[%emt 0:00:06]} 26. Rxd1 {[%emt 0:00:01]} a6 {[%emt 0:00:27]} 27. Qxf6 {[%emt 0:00:05]} Nc6 {[%emt 0:00:13]} 28. Bxc6 {[%emt 0:00:03] White mates.} bxc6 {[%emt 0:00:06]} 29. Qd8+ {[%emt 0:00:01]} Qxd8 {[%emt 0:00:02]} 30. Rxd8+ {[%emt 0:00:01]} Kc7 {[%emt 0:00:01]} 31. Rf8 {[%emt 0:00:01]} Kb6 {[%emt 0:00:05]} 32. b4 {[%emt 0:00:01]} c5 {[%emt 0:00:01]} 33. bxc5+ {[%emt 0:00:01]} Kxc5 34. Rxf7 {[%emt 0:00:00]} Kb4 {[%emt 0:00:05]} 35. Rf5 {[%emt 0:00:01]} e4 {[%emt 0:00:03]} 36. Rf4 {[%emt 0:00:01]} Kxa4 37. Rxe4+ {[%emt 0:00:01]} Kb5 {[%emt 0:00:03]} 38. f4 {[%emt 0:00:01]} a5 {[%emt 0:00:01]} 39. f5 {[%emt 0:00:01]} a4 {[%emt 0:00:01]} 40. f6 {[%emt 0:00:01]} a3 {[%emt 0:00:01]} 41. f7 {[%emt 0:00:01]} a2 {[%emt 0:00:01]} 42. f8=Q {[%emt 0:00:04]} a1=Q+ {[%emt 0:00:02]} 43. Qf1+ {[%emt 0:00:01]} Qxf1+ {[%emt 0:00:17]} 44. Kxf1 {[%emt 0:00:05]} Kc5 {[%emt 0:00:00]} 45. g4 {[%emt 0:00:01]} Kd5 {[%emt 0:00:00]} 46. Rf4 {[%emt 0:00:01]} Ke5 {[%emt 0:00:00]} 47. Ng2 {[%emt 0:00:01]} Ke6 {[%emt 0:00:00]} 48. h4 {[%emt 0:00:01]} Ke5 {[%emt 0:00:00]} 49. g5 {[%emt 0:00:00]} Ke6 {[%emt 0:00:00]} 50. gxh6 {[%emt 0:00:03]} Ke7 {[%emt 0:00:00]} 51. h7 {[%emt 0:00:01]} Ke6 {[%emt 0:00:00]} 52. h8=Q {[%emt 0:00:03]} Kd6 {[%emt 0:00:00]} 53. Qf6+ {[%emt 0:00:01]} Kd7 {[%emt 0:00:00]} 54. Rd4+ {[%emt 0:00:01]} Kc7 {[%emt 0:00:01]} 55. Qd6+ {[%emt 0:00:01]} Kb7 {[%emt 0:00:01]} 56. Rb4+ {[%emt 0:00:01]} Ka7 {[%emt 0:00:03]} 57. Qb6+ {[%emt 0:00:02]} Ka8 {[%emt 0:00:01]} 58. Qb7# {[%emt 0:00:01] Weighted Error Value: White=0.18 (very precise) /Black=0.57} 1-0